[Event "FIDE U16 Olympiad_boards_81-124"]
[Site "Eindhoven, Netherlands"]
[Date "2023.08.14"]
[Round "3.36"]
[White "Fan, Wen Xi"]
[Black "Matshego, Thato"]
[Result "0-1"]
[TimeControl "45min+10sec"]
[WhiteElo "1281"]
[BlackElo "1150"]

1. e4 {[%clk 00:45:18]} {[%emt 00:00:01]} d5 {[%clk 00:45:18]} {[%emt
00:00:02]} 2. exd5 {[%clk 00:45:25]} {[%emt 00:00:03]} Qxd5 {[%clk 00:45:26]}
{[%emt 00:00:02]} 3. Nc3 {[%clk 00:45:32]} {[%emt 00:00:03]} Qd8 {[%clk
00:45:35]} {[%emt 00:00:01]} 4. d4 {[%clk 00:45:36]} {[%emt 00:00:07]} Nf6
{[%clk 00:45:43]} {[%emt 00:00:02]} 5. Nf3 {[%clk 00:45:39]} {[%emt 00:00:07]}
Bg4 {[%clk 00:45:51]} {[%emt 00:00:02]} 6. Be2 {[%clk 00:45:46]} {[%emt
00:00:03]} e6 {[%clk 00:45:59]} {[%emt 00:00:02]} 7. O-O {[%clk 00:45:45]}
{[%emt 00:00:11]} Bxf3 {[%clk 00:46:01]} {[%emt 00:00:09]} 8. Bxf3 {[%clk
00:45:51]} {[%emt 00:00:03]} c6 {[%clk 00:46:09]} 9. Re1 {[%clk 00:45:23]}
{[%emt 00:00:38]} Bd6 {[%clk 00:46:13]} {[%emt 00:00:05]} 10. Bg5 {[%clk
00:44:55]} {[%emt 00:00:39]} Nbd7 {[%clk 00:46:21]} {[%emt 00:00:02]} 11. d5
{[%clk 00:44:44]} {[%emt 00:00:22]} cxd5 {[%clk 00:44:22]} {[%emt 00:02:09]} 12.
Nxd5 {[%clk 00:44:46]} {[%emt 00:00:07]} O-O {[%clk 00:44:21]} {[%emt
00:00:11]} 13. Nxf6+ {[%clk 00:44:45]} {[%emt 00:00:11]} Nxf6 {[%clk 00:44:20]}
{[%emt 00:00:11]} 14. Bxf6 {[%clk 00:44:31]} {[%emt 00:00:25]} gxf6 {[%clk
00:44:25]} {[%emt 00:00:05]} 15. Rb1 {[%clk 00:43:48]} {[%emt 00:00:51]} Qc7
{[%clk 00:44:30]} {[%emt 00:00:05]} 16. h3 {[%clk 00:43:36]} {[%emt 00:00:24]}
Rad8 {[%clk 00:44:37]} {[%emt 00:00:03]} 17. Qe2 {[%clk 00:43:34]} {[%emt
00:00:11]} Kh8 {[%clk 00:43:33]} {[%emt 00:01:14]} 18. Red1 {[%clk 00:42:59]}
{[%emt 00:00:45]} Rg8 {[%clk 00:43:26]} {[%emt 00:00:17]} 19. Kh1 {[%clk
00:42:39]} {[%emt 00:00:31]} Qb6 {[%clk 00:40:58]} {[%emt 00:02:34]} 20. Kg1
{[%clk 00:39:45]} {[%emt 00:03:07]} Bc5 {[%clk 00:40:05]} {[%emt 00:01:02]} 21.
c3 {[%clk 00:38:53]} {[%emt 00:01:02]} Bd6 {[%clk 00:36:06]} {[%emt 00:04:09]}
22. a3 {[%clk 00:37:27]} {[%emt 00:01:34]} Qc7 {[%clk 00:34:47]} {[%emt
00:01:32]} 23. Kh1 {[%clk 00:34:49]} {[%emt 00:02:49]} b6 {[%clk 00:33:28]}
{[%emt 00:01:28]} 24. Rd3 {[%clk 00:33:57]} {[%emt 00:01:02]} Qc4 {[%clk
00:31:00]} {[%emt 00:02:30]} 25. Rbd1 {[%clk 00:30:35]} {[%emt 00:03:40]} Qf4
{[%clk 00:30:31]} {[%emt 00:00:38]} 26. g3 {[%clk 00:29:38]} {[%emt 00:01:09]}
Qh6 {[%clk 00:30:02]} {[%emt 00:00:28]} 27. Bg2 {[%clk 00:27:46]} {[%emt
00:02:13]} Bc7 {[%clk 00:29:39]} {[%emt 00:00:27]} 28. Rd7 {[%clk 00:27:10]}
{[%emt 00:00:51]} Rxd7 {[%clk 00:24:24]} {[%emt 00:05:26]} 29. Rxd7 {[%clk
00:27:15]} {[%emt 00:00:04]} Qc1+ {[%clk 00:16:39]} {[%emt 00:07:54]} 30. Kh2
{[%clk 00:26:49]} {[%emt 00:00:37]} Bb8 {[%clk 00:15:42]} {[%emt 00:01:03]} 31.
Rxf7 {[%clk 00:26:11]} {[%emt 00:00:52]} Qg5 {[%clk 00:05:51]} {[%emt
00:10:01]} 32. Qf3 {[%clk 00:21:39]} {[%emt 00:04:42]} f5 {[%clk 00:04:37]}
{[%emt 00:01:24]} 33. Qe2 {[%clk 00:10:03]} {[%emt 00:11:46]} f4 {[%clk
00:03:21]} {[%emt 00:01:26]} 34. Qc2 {[%clk 00:05:19]} {[%emt 00:04:53]} fxg3+
{[%clk 00:03:19]} {[%emt 00:00:13]} 35. Kh1 {[%clk 00:05:21]} {[%emt 00:00:09]}
Qh6 {[%clk 00:02:30]} {[%emt 00:00:58]} 36. fxg3 {[%clk 00:03:05]} {[%emt
00:02:27]} Rxg3 {[%clk 00:02:16]} {[%emt 00:00:24]} 37. Qf2 {[%clk 00:02:22]}
{[%emt 00:00:52]} Rg8 {[%clk 00:00:53]} {[%emt 00:01:33]} 38. Qf6+ {[%clk
00:01:58]} {[%emt 00:00:35]} Qxf6 {[%clk 00:00:55]} {[%emt 00:00:08]} 39. Rxf6
{[%clk 00:02:05]} {[%emt 00:00:02]} Re8 {[%clk 00:00:55]} {[%emt 00:00:10]} 40.
Be4 {[%clk 00:01:45]} {[%emt 00:00:30]} Kg7 {[%clk 00:01:04]} 41. Rf3 {[%clk
00:01:50]} {[%emt 00:00:04]} h6 {[%clk 00:01:11]} {[%emt 00:00:05]} 42. Kg2
{[%clk 00:01:51]} {[%emt 00:00:09]} Rd8 {[%clk 00:01:02]} {[%emt 00:00:18]} 43.
Rf2 {[%clk 00:01:57]} {[%emt 00:00:04]} Rg8 {[%clk 00:00:33]} {[%emt 00:00:37]}
44. Kf1 {[%clk 00:01:23]} {[%emt 00:00:46]} Rd8 {[%clk 00:00:28]} {[%emt
00:00:13]} 45. Ke2 {[%clk 00:01:16]} {[%emt 00:00:19]} Be5 {[%clk 00:00:19]}
{[%emt 00:00:19]} 46. Bd3 {[%clk 00:00:55]} {[%emt 00:00:31]} Rd7 {[%clk
00:00:27]} {[%emt 00:00:02]} 47. Rf3 {[%clk 00:00:43]} {[%emt 00:00:22]} Bf6
{[%clk 00:00:23]} {[%emt 00:00:15]} 48. Rg3+ {[%clk 00:00:22]} {[%emt
00:00:30]} Kf7 {[%clk 00:00:19]} {[%emt 00:00:13]} 49. Rf3 {[%clk 00:00:27]}
{[%emt 00:00:07]} h5 {[%clk 00:00:25]} {[%emt 00:00:04]} 50. Rg3 {[%clk
00:00:30]} {[%emt 00:00:06]} h4 {[%clk 00:00:32]} {[%emt 00:00:03]} 51. Rf3
{[%clk 00:00:35]} {[%emt 00:00:05]} Rd5 {[%clk 00:00:20]} {[%emt 00:00:19]} 52.
Re3 {[%clk 00:00:27]} {[%emt 00:00:21]} Rg5 {[%clk 00:00:21]} {[%emt 00:00:09]}
53. Bc4 {[%clk 00:00:15]} {[%emt 00:00:23]} Be5 {[%clk 00:00:27]} {[%emt
00:00:01]} 54. Kd3 {[%clk 00:00:19]} {[%emt 00:00:08]} Rg3 {[%clk 00:00:25]}
{[%emt 00:00:13]} 55. Ke4 {[%clk 00:00:11]} {[%emt 00:00:17]} Kf6 {[%clk
00:00:28]} {[%emt 00:00:05]} 0-1

[Event "FIDE U16 Olympiad_boards_81-124"]
[Site "Eindhoven, Netherlands"]
[Date "2023.08.14"]
[Round "3.38"]
[White "Chao, Tzu-Yi Anderson"]
[Black "Helmy, Muhammad Adnin Nuaym"]
[Result "1-0"]
[TimeControl "45min+10sec"]
[WhiteElo "1347"]
[BlackElo "1292"]

1. e4 {[%clk 00:45:18]} {[%emt 00:00:02]} c5 {[%clk 00:45:18]} {[%emt
00:00:02]} 2. c3 {[%clk 00:45:26]} {[%emt 00:00:03]} Nf6 {[%clk 00:45:24]}
{[%emt 00:00:04]} 3. e5 {[%clk 00:45:32]} {[%emt 00:00:04]} Nd5 {[%clk
00:45:31]} {[%emt 00:00:02]} 4. Nf3 {[%clk 00:45:37]} {[%emt 00:00:05]} e6
{[%clk 00:45:05]} {[%emt 00:00:36]} 5. Bc4 {[%clk 00:44:55]} {[%emt 00:00:52]}
Nb6 {[%clk 00:44:24]} {[%emt 00:00:51]} 6. Bb3 {[%clk 00:45:01]} {[%emt
00:00:04]} Nc6 {[%clk 00:43:16]} {[%emt 00:01:18]} 7. O-O {[%clk 00:44:58]}
{[%emt 00:00:13]} Qc7 {[%clk 00:43:01]} {[%emt 00:00:26]} 8. d4 {[%clk
00:44:14]} {[%emt 00:00:55]} cxd4 {[%clk 00:41:51]} {[%emt 00:01:19]} 9. cxd4
{[%clk 00:44:20]} {[%emt 00:00:05]} d6 {[%clk 00:41:21]} {[%emt 00:00:39]} 10.
Bf4 {[%clk 00:42:16]} {[%emt 00:02:14]} Be7 {[%clk 00:39:18]} {[%emt 00:02:13]}
11. Nc3 {[%clk 00:42:04]} {[%emt 00:00:22]} a6 {[%clk 00:37:07]} {[%emt
00:02:21]} 12. Ne4 {[%clk 00:38:26]} {[%emt 00:03:48]} dxe5 {[%clk 00:33:47]}
{[%emt 00:03:30]} 13. Nxe5 {[%clk 00:33:36]} {[%emt 00:05:01]} Qd8 {[%clk
00:21:40]} {[%emt 00:12:17]} 14. Nf3 {[%clk 00:21:32]} {[%emt 00:12:15]} Nd5
{[%clk 00:19:54]} {[%emt 00:01:56]} 15. Bg3 {[%clk 00:21:21]} {[%emt 00:00:22]}
O-O {[%clk 00:16:35]} {[%emt 00:03:28]} 16. Qe2 {[%clk 00:19:48]} {[%emt
00:01:43]} h6 {[%clk 00:11:22]} {[%emt 00:05:23]} 17. Rfd1 {[%clk 00:19:29]}
{[%emt 00:00:30]} f5 {[%clk 00:10:55]} {[%emt 00:00:37]} 18. Nc5 {[%clk
00:14:41]} {[%emt 00:04:58]} Bxc5 {[%clk 00:10:21]} {[%emt 00:00:43]} 19. dxc5
{[%clk 00:13:53]} {[%emt 00:00:58]} f4 {[%clk 00:07:46]} {[%emt 00:02:45]} 20.
Bh4 {[%clk 00:13:11]} {[%emt 00:00:52]} g5 {[%clk 00:07:07]} {[%emt 00:00:50]}
21. Qe4 {[%clk 00:12:44]} {[%emt 00:00:37]} Qf6 {[%clk 00:04:33]} {[%emt
00:02:44]} 22. Bxd5 {[%clk 00:06:39]} {[%emt 00:06:15]} exd5 {[%clk 00:04:33]}
{[%emt 00:00:10]} 23. Rxd5 {[%clk 00:06:43]} {[%emt 00:00:06]} gxh4 {[%clk
00:03:56]} {[%emt 00:00:47]} 24. Rd6 {[%clk 00:05:54]} {[%emt 00:00:59]} Qf5
{[%clk 00:01:34]} {[%emt 00:02:33]} 25. Qc4+ {[%clk 00:04:55]} {[%emt
00:01:08]} Qf7 {[%clk 00:01:35]} {[%emt 00:00:08]} 26. Qc3 {[%clk 00:03:58]}
{[%emt 00:01:08]} Qg7 {[%clk 00:01:15]} {[%emt 00:00:29]} 27. Qc4+ {[%clk
00:03:50]} {[%emt 00:00:18]} Kh8 {[%clk 00:00:57]} {[%emt 00:00:28]} 28. Nxh4
{[%clk 00:03:19]} {[%emt 00:00:41]} Ne5 {[%clk 00:00:41]} {[%emt 00:00:25]} 29.
Qd4 {[%clk 00:02:45]} {[%emt 00:00:44]} Bg4 {[%clk 00:00:23]} {[%emt 00:00:29]}
30. Re1 {[%clk 00:00:40]} {[%emt 00:02:15]} Nc6 {[%clk 00:00:19]} {[%emt
00:00:14]} 31. Qxg7+ {[%clk 00:00:46]} {[%emt 00:00:05]} Kxg7 {[%clk 00:00:28]}
32. Rg6+ {[%clk 00:00:54]} {[%emt 00:00:02]} Kf7 {[%clk 00:00:34]} {[%emt
00:00:03]} 33. Rxg4 {[%clk 00:01:03]} {[%emt 00:00:02]} Rfe8 {[%clk 00:00:35]}
{[%emt 00:00:09]} 34. Rxf4+ {[%clk 00:01:09]} {[%emt 00:00:04]} Kg7 {[%clk
00:00:40]} {[%emt 00:00:05]} 35. Rfe4 {[%clk 00:00:43]} {[%emt 00:00:36]} Rxe4
{[%clk 00:00:43]} {[%emt 00:00:07]} 36. Rxe4 {[%clk 00:00:51]} {[%emt
00:00:01]} Rd8 {[%clk 00:00:52]} {[%emt 00:00:01]} 37. Nf5+ {[%clk 00:00:59]}
{[%emt 00:00:02]} Kf6 {[%clk 00:00:59]} {[%emt 00:00:03]} 38. Nd6 {[%clk
00:01:08]} {[%emt 00:00:01]} Ne7 {[%clk 00:00:37]} {[%emt 00:00:32]} 39. Kf1
{[%clk 00:00:49]} {[%emt 00:00:29]} Nd5 {[%clk 00:00:25]} {[%emt 00:00:22]} 40.
Rd4 {[%clk 00:00:40]} {[%emt 00:00:18]} Ke5 {[%clk 00:00:22]} {[%emt 00:00:14]}
41. Nf7+ {[%clk 00:00:28]} {[%emt 00:00:23]} Kxd4 {[%clk 00:00:30]} {[%emt
00:00:01]} 42. Nxd8 {[%clk 00:00:37]} {[%emt 00:00:01]} Kxc5 {[%clk 00:00:33]}
{[%emt 00:00:08]} 43. Nxb7+ {[%clk 00:00:40]} {[%emt 00:00:07]} Kc6 {[%clk
00:00:37]} {[%emt 00:00:06]} 44. Nd8+ {[%clk 00:00:49]} {[%emt 00:00:01]} Kd7
{[%clk 00:00:46]} {[%emt 00:00:01]} 45. Nf7 {[%clk 00:00:56]} {[%emt 00:00:02]}
1-0

[Event "FIDE U16 Olympiad_boards_81-124"]
[Site "Eindhoven, Netherlands"]
[Date "2023.08.14"]
[Round "3.39"]
[White "Akhramsyah, Ashraf Alimuddin Zah"]
[Black "Hsu, Che"]
[Result "0-1"]
[TimeControl "45min+10sec"]
[WhiteElo "1350"]
[BlackElo "1374"]

1. e4 {[%clk 00:45:11]} {[%emt 00:00:08]} c5 {[%clk 00:45:18]} {[%emt
00:00:03]} 2. Nf3 {[%clk 00:45:13]} {[%emt 00:00:08]} g6 {[%clk 00:45:25]}
{[%emt 00:00:03]} 3. c3 {[%clk 00:45:04]} {[%emt 00:00:19]} Nf6 {[%clk
00:45:24]} {[%emt 00:00:11]} 4. e5 {[%clk 00:44:33]} {[%emt 00:00:42]} Nd5
{[%clk 00:45:30]} {[%emt 00:00:03]} 5. d4 {[%clk 00:44:32]} {[%emt 00:00:11]}
cxd4 {[%clk 00:45:34]} {[%emt 00:00:07]} 6. cxd4 {[%clk 00:44:32]} {[%emt
00:00:10]} Bg7 {[%clk 00:45:02]} {[%emt 00:00:41]} 7. Nc3 {[%clk 00:43:47]}
{[%emt 00:00:55]} Nxc3 {[%clk 00:45:08]} {[%emt 00:00:04]} 8. bxc3 {[%clk
00:43:55]} {[%emt 00:00:02]} Nc6 {[%clk 00:44:42]} {[%emt 00:00:36]} 9. Bd3
{[%clk 00:43:19]} {[%emt 00:00:46]} O-O {[%clk 00:44:17]} {[%emt 00:00:35]} 10.
O-O {[%clk 00:43:19]} {[%emt 00:00:09]} d6 {[%clk 00:44:22]} {[%emt 00:00:05]}
11. exd6 {[%clk 00:42:30]} {[%emt 00:01:00]} Qxd6 {[%clk 00:44:29]} {[%emt
00:00:03]} 12. Re1 {[%clk 00:41:37]} {[%emt 00:01:03]} Bd7 {[%clk 00:40:25]}
{[%emt 00:04:15]} 13. a4 {[%clk 00:39:35]} {[%emt 00:02:12]} Rac8 {[%clk
00:39:51]} {[%emt 00:00:44]} 14. Ba3 {[%clk 00:38:16]} {[%emt 00:01:29]} Qc7
{[%clk 00:35:06]} {[%emt 00:04:54]} 15. Bxe7 {[%clk 00:33:19]} {[%emt
00:05:06]} Nxe7 {[%clk 00:34:26]} {[%emt 00:00:51]} 16. Rxe7 {[%clk 00:33:26]}
{[%emt 00:00:03]} Qd6 {[%clk 00:34:16]} {[%emt 00:00:20]} 17. Qe1 {[%clk
00:30:36]} {[%emt 00:03:00]} Bf6 {[%clk 00:26:37]} {[%emt 00:07:49]} 18. Re3
{[%clk 00:27:23]} {[%emt 00:03:22]} a6 {[%clk 00:24:46]} {[%emt 00:02:03]} 19.
Qb1 {[%clk 00:24:05]} {[%emt 00:03:27]} Rxc3 {[%clk 00:18:39]} {[%emt
00:06:18]} 20. Bxg6 {[%clk 00:23:39]} {[%emt 00:00:34]} Bxd4 {[%clk 00:16:47]}
{[%emt 00:02:03]} 21. Bxh7+ {[%clk 00:23:29]} {[%emt 00:00:20]} Kg7 {[%clk
00:14:08]} {[%emt 00:02:50]} 22. Nxd4 {[%clk 00:22:19]} {[%emt 00:01:20]} Qxd4
{[%clk 00:13:25]} {[%emt 00:00:53]} 23. Qe4 {[%clk 00:14:21]} {[%emt 00:08:07]}
Qc5 {[%clk 00:10:58]} {[%emt 00:02:38]} 24. Rxc3 {[%clk 00:10:58]} {[%emt
00:03:34]} Qxc3 {[%clk 00:10:57]} {[%emt 00:00:11]} 25. Rd1 {[%clk 00:09:51]}
{[%emt 00:01:16]} Re8 {[%clk 00:09:44]} {[%emt 00:01:23]} 26. Qb1 {[%clk
00:08:02]} {[%emt 00:01:59]} Bxa4 {[%clk 00:08:47]} {[%emt 00:01:08]} 27. Rc1
{[%clk 00:07:31]} {[%emt 00:00:40]} Qe5 {[%clk 00:07:08]} {[%emt 00:01:48]} 28.
Bd3 {[%clk 00:06:53]} {[%emt 00:00:49]} Bc6 {[%clk 00:06:59]} {[%emt 00:00:20]}
29. Qa1 {[%clk 00:06:18]} {[%emt 00:00:45]} Qxa1 {[%clk 00:05:44]} {[%emt
00:01:24]} 30. Rxa1 {[%clk 00:06:25]} {[%emt 00:00:03]} Kf6 {[%clk 00:04:48]}
{[%emt 00:01:06]} 31. h3 {[%clk 00:05:36]} {[%emt 00:00:59]} Ra8 {[%clk
00:04:14]} {[%emt 00:00:44]} 32. Ra5 {[%clk 00:05:13]} {[%emt 00:00:33]} b5
{[%clk 00:03:57]} {[%emt 00:00:27]} 33. Kf1 {[%clk 00:04:24]} {[%emt 00:00:59]}
Ke5 {[%clk 00:04:03]} {[%emt 00:00:04]} 34. Ke2 {[%clk 00:04:10]} {[%emt
00:00:24]} Bxg2 {[%clk 00:03:29]} {[%emt 00:00:44]} 35. f3 {[%clk 00:03:59]}
{[%emt 00:00:21]} Kf4 {[%clk 00:02:46]} {[%emt 00:00:53]} 36. Kf2 {[%clk
00:02:21]} {[%emt 00:01:48]} Bxf3 {[%clk 00:02:53]} {[%emt 00:00:04]} 37. Bxb5
{[%clk 00:00:59]} {[%emt 00:01:32]} axb5 {[%clk 00:02:52]} {[%emt 00:00:11]} 38.
Rxb5 {[%clk 00:01:07]} {[%emt 00:00:02]} Ra2+ {[%clk 00:03:00]} {[%emt
00:00:02]} 39. Ke1 {[%clk 00:01:09]} {[%emt 00:00:07]} Ke3 {[%clk 00:02:35]}
{[%emt 00:00:34]} 40. Rb3+ {[%clk 00:01:11]} {[%emt 00:00:10]} Kf4 {[%clk
00:02:42]} {[%emt 00:00:02]} 41. Rb5 {[%clk 00:01:18]} {[%emt 00:00:04]} f5
{[%clk 00:02:41]} {[%emt 00:00:12]} 42. Rb4+ {[%clk 00:01:09]} {[%emt
00:00:19]} Kg3 {[%clk 00:02:46]} {[%emt 00:00:03]} 43. Rb5 {[%clk 00:00:40]}
{[%emt 00:00:41]} Be4 {[%clk 00:02:38]} {[%emt 00:00:17]} 44. Rb3+ {[%clk
00:00:48]} {[%emt 00:00:03]} Kh4 {[%clk 00:02:25]} {[%emt 00:00:23]} 45. Kf1
{[%clk 00:00:46]} {[%emt 00:00:12]} Bg2+ {[%clk 00:02:11]} {[%emt 00:00:24]} 46.
Kg1 {[%clk 00:00:54]} {[%emt 00:00:01]} Bxh3 {[%clk 00:02:18]} {[%emt
00:00:03]} 0-1

[Event "FIDE U16 Olympiad_boards_81-124"]
[Site "Eindhoven, Netherlands"]
[Date "2023.08.14"]
[Round "3.40"]
[White "Wang, Yushin Andrea"]
[Black "Mohd Tarmizi, Nur Uzma Bazilah"]
[Result "1/2-1/2"]
[TimeControl "45min+10sec"]
[WhiteElo "1186"]
[BlackElo "1367"]

1. e4 {[%clk 00:45:19]} {[%emt 02:41:19]} c5 {[%clk 00:45:13]} {[%emt
00:00:07]} 2. Nf3 {[%clk 00:45:24]} {[%emt 00:00:05]} e6 {[%clk 00:45:11]}
{[%emt 00:00:11]} 3. c3 {[%clk 00:45:28]} {[%emt 00:00:07]} Nf6 {[%clk
00:44:32]} {[%emt 00:00:48]} 4. e5 {[%clk 00:44:29]} {[%emt 00:01:09]} Nd5
{[%clk 00:44:25]} {[%emt 00:00:16]} 5. d4 {[%clk 00:43:58]} {[%emt 00:00:42]}
cxd4 {[%clk 00:43:25]} {[%emt 00:01:10]} 6. cxd4 {[%clk 00:43:46]} {[%emt
00:00:22]} Nc6 {[%clk 00:42:47]} {[%emt 00:00:47]} 7. Nc3 {[%clk 00:43:10]}
{[%emt 00:00:47]} Nxc3 {[%clk 00:42:19]} {[%emt 00:00:38]} 8. bxc3 {[%clk
00:43:17]} {[%emt 00:00:03]} d6 {[%clk 00:41:55]} {[%emt 00:00:33]} 9. Bb5
{[%clk 00:41:21]} {[%emt 00:02:07]} Bd7 {[%clk 00:40:54]} {[%emt 00:01:10]} 10.
Qe2 {[%clk 00:39:19]} {[%emt 00:02:13]} a6 {[%clk 00:40:33]} {[%emt 00:00:30]}
11. Bd3 {[%clk 00:38:21]} {[%emt 00:01:08]} Qa5 {[%clk 00:36:25]} {[%emt
00:04:16]} 12. Bd2 {[%clk 00:37:24]} {[%emt 00:01:10]} dxe5 {[%clk 00:36:13]}
{[%emt 00:00:21]} 13. c4 {[%clk 00:33:55]} {[%emt 00:03:40]} Bb4 {[%clk
00:36:09]} {[%emt 00:00:13]} 14. dxe5 {[%clk 00:32:06]} {[%emt 00:02:00]} Nxe5
{[%clk 00:33:06]} {[%emt 00:03:13]} 15. Qxe5 {[%clk 00:24:31]} {[%emt
00:07:45]} Bxd2+ {[%clk 00:33:11]} {[%emt 00:00:04]} 16. Ke2 {[%clk 00:24:24]}
{[%emt 00:00:18]} Qxe5+ {[%clk 00:30:39]} {[%emt 00:02:42]} 17. Nxe5 {[%clk
00:24:32]} {[%emt 00:00:02]} Bc3 {[%clk 00:30:32]} {[%emt 00:00:17]} 18. Nxd7
{[%clk 00:24:13]} {[%emt 00:00:29]} Kxd7 {[%clk 00:30:18]} {[%emt 00:00:24]} 19.
Rab1 {[%clk 00:22:33]} {[%emt 00:01:50]} Rab8 {[%clk 00:30:05]} {[%emt
00:00:23]} 20. Rb3 {[%clk 00:21:56]} {[%emt 00:00:47]} Bd4 {[%clk 00:29:15]}
{[%emt 00:01:00]} 21. Rhb1 {[%clk 00:21:01]} {[%emt 00:01:05]} Kc7 {[%clk
00:28:34]} {[%emt 00:00:50]} 22. Be4 {[%clk 00:19:43]} {[%emt 00:01:30]} b6
{[%clk 00:28:11]} {[%emt 00:00:32]} 23. Rf3 {[%clk 00:18:30]} {[%emt 00:01:23]}
f5 {[%clk 00:26:53]} {[%emt 00:01:28]} 24. Rd3 {[%clk 00:17:30]} {[%emt
00:01:10]} Rbd8 {[%clk 00:26:49]} {[%emt 00:00:14]} 25. Rbd1 {[%clk 00:16:52]}
{[%emt 00:00:48]} Bf6 {[%clk 00:26:06]} {[%emt 00:00:52]} 26. Rxd8 {[%clk
00:16:40]} {[%emt 00:00:22]} Rxd8 {[%clk 00:26:13]} {[%emt 00:00:03]} 27. Rxd8
{[%clk 00:16:34]} {[%emt 00:00:16]} Bxd8 {[%clk 00:26:19]} {[%emt 00:00:04]} 28.
Bd3 {[%clk 00:15:48]} {[%emt 00:00:56]} Kc6 {[%clk 00:26:15]} {[%emt 00:00:13]}
29. Kf3 {[%clk 00:14:53]} {[%emt 00:01:05]} Kc5 {[%clk 00:25:25]} {[%emt
00:01:00]} 30. a3 {[%clk 00:13:58]} {[%emt 00:01:06]} Kd4 {[%clk 00:25:27]}
{[%emt 00:00:08]} 31. Be2 {[%clk 00:12:41]} {[%emt 00:01:27]} a5 {[%clk
00:24:52]} {[%emt 00:00:44]} 32. g4 {[%clk 00:10:30]} {[%emt 00:02:22]} g6
{[%clk 00:24:48]} {[%emt 00:00:14]} 33. gxf5 {[%clk 00:09:04]} {[%emt
00:01:37]} exf5 {[%clk 00:24:54]} {[%emt 00:00:04]} 34. Kf4 {[%clk 00:06:38]}
{[%emt 00:02:36]} Bc7 {[%clk 00:25:00]} {[%emt 00:00:03]} 35. Kg5 {[%clk
00:06:46]} {[%emt 00:00:03]} Bxh2 {[%clk 00:25:07]} {[%emt 00:00:03]} 36. Kh6
{[%clk 00:06:53]} {[%emt 00:00:03]} Bg1 {[%clk 00:25:14]} {[%emt 00:00:03]} 37.
Kxh7 {[%clk 00:06:33]} {[%emt 00:00:30]} Bxf2 {[%clk 00:25:21]} {[%emt
00:00:03]} 38. Kxg6 {[%clk 00:06:41]} {[%emt 00:00:01]} f4 {[%clk 00:25:29]}
{[%emt 00:00:02]} 39. Kf5 {[%clk 00:06:06]} {[%emt 00:00:46]} Ke3 {[%clk
00:25:37]} {[%emt 00:00:02]} 40. Bd1 {[%clk 00:05:10]} {[%emt 00:01:06]} Bg3
{[%clk 00:25:39]} {[%emt 00:00:08]} 41. Kg4 {[%clk 00:04:12]} {[%emt 00:01:08]}
Kd3 {[%clk 00:25:44]} {[%emt 00:00:04]} 42. a4 {[%clk 00:02:38]} {[%emt
00:01:45]} Kxc4 {[%clk 00:25:50]} {[%emt 00:00:03]} 43. Be2+ {[%clk 00:02:42]}
{[%emt 00:00:06]} Kb4 {[%clk 00:25:23]} {[%emt 00:00:37]} 44. Bb5 {[%clk
00:02:38]} {[%emt 00:00:14]} Kc3 {[%clk 00:25:30]} {[%emt 00:00:03]} 45. Kf3
{[%clk 00:01:41]} {[%emt 00:01:07]} Kd4 {[%clk 00:25:04]} {[%emt 00:00:34]} 46.
Bc6 {[%clk 00:01:30]} {[%emt 00:00:22]} Kc5 {[%clk 00:25:01]} {[%emt 00:00:14]}
47. Bb5 {[%clk 00:01:26]} {[%emt 00:00:14]} Bh2 {[%clk 00:25:07]} {[%emt
00:00:04]} 48. Ke4 {[%clk 00:01:15]} {[%emt 00:00:21]} Kb4 {[%clk 00:24:57]}
{[%emt 00:00:20]} 49. Bc6 {[%clk 00:00:54]} {[%emt 00:00:32]} b5 {[%clk
00:24:30]} {[%emt 00:00:36]} 50. Bxb5 {[%clk 00:00:59]} {[%emt 00:00:04]} Kc5
{[%clk 00:24:36]} {[%emt 00:00:04]} 51. Bd7 {[%clk 00:00:51]} {[%emt 00:00:18]}
Kd6 {[%clk 00:24:44]} {[%emt 00:00:02]} 52. Bb5 {[%clk 00:00:54]} {[%emt
00:00:05]} Kc5 {[%clk 00:24:53]} {[%emt 00:00:03]} 53. Bd7 {[%clk 00:00:58]}
{[%emt 00:00:05]} 1/2-1/2